bitfinex/quotes_ETHUSD_20251215
["timestamp","ask_amount","ask_price","bid_price","bid_amount"]
[1765767859641,0.002,3121.8,3121.7,6.12742835]
[1765767859847,0.002,3121.8,3121.7,4.69165806]
[1765767862269,0.002,3121.8,3121.7,3.78385806]
[1765767862485,0.002,3121.8,3121.7,3.20338277]
[1765767862649,0.002,3121.8,3121.7,0.58047529]
[1765767862849,0.002,3121.8,3121.7,3.20338277]
[1765767863155,0.002,3121.8,3121.7,3.78385806]
[1765767863480,0.002,3121.8,3121.5,0.58047529]
[1765767863777,0.00966759,3121.6,3121.5,3.7840633]
[1765767865078,0.00966759,3121.6,3121.5,0.58047529]
[1765767865383,0.24396759,3121.6,3121.5,3.20358801]
[1765767865676,0.51966759,3121.6,3121.5,4.11138801]
[1765767865878,0.51966759,3121.6,3121.5,3.65928801]
[1765767866078,0.75596759,3121.6,3121.1,0.4521]
[1765767866383,0.00966759,3121.2,3121.1,3.2039853]
[1765767866876,0.00966759,3121.2,3121.1,3.6992853]
[1765767869508,0.00966759,3121.4,3121.1,6.90328389]
[1765767869659,0.00966759,3121.4,3121.3,0.4511]
[1765767869856,0.00966759,3121.4,3121.1,3.2039853]
[1765767870062,0.00966759,3121.2,3120.9,3.20411342]
[1765767870262,0.00966759,3121.2,3121.0,0.58047529]
[1765767870483,0.00966759,3121.2,3121.1,0.9462]
[1765767871084,0.00966759,3121.2,3121.1,0.4511]
[1765767872193,0.00966759,3121.2,3121.1,3.65509859]
[1765767872380,0.00966759,3121.2,3121.1,3.20399859]
[1765767872776,0.00966759,3121.2,3121.1,4.15019859]
[1765767874906,0.00966759,3121.4,3121.1,7.35419718]
[1765767875073,0.00966759,3121.4,3121.3,0.4511]
[1765767876895,0.00966759,3121.4,3121.3,3.65489329]
[1765767877099,0.00966759,3121.4,3121.3,0.4511]
[1765767877294,0.00966759,3121.4,3121.3,3.65489329]
[1765767879897,0.51866759,3121.4,3121.3,3.65489329]
[1765767880276,1.25036759,3121.4,3121.0,3.20509852]
[1765767880481,0.00966759,3121.2,3121.1,3.20397408]
[1765767881099,0.00966759,3121.2,3121.1,4.15017408]
[1765767881300,0.509,3121.3,3121.1,7.35417267]
[1765767881501,0.509,3121.3,3121.2,0.4951]
[1765767881700,0.509,3121.3,3121.2,0.9462]
[1765767883784,0.51866759,3121.4,3121.3,3.20379329]
[1765767883972,0.00966759,3121.4,3121.3,3.65489329]
[1765767884303,0.51866759,3121.4,3121.3,4.14999329]
[1765767885918,0.79796759,3121.4,3121.2,3.20386232]
[1765767886097,0.51866759,3121.4,3121.3,3.20379329]
[1765767886285,0.51866759,3121.4,3121.3,3.65489329]
[1765767887119,0.509,3121.4,3121.3,3.65489329]
[1765767888488,0.509,3121.5,3121.3,6.85868658]
[1765767888677,0.00966759,3121.4,3121.3,3.69889329]
[1765767889078,0.002,3121.6,3121.4,0.58047529]
[1765767889302,0.002,3121.6,3121.5,0.4511]
[1765767889776,0.002,3121.6,3121.5,0.9462]
[1765767889977,0.002,3121.6,3121.5,4.7302633]
[1765767893283,0.002,3121.6,3121.5,4.76229918]
[1765767893490,0.002,3121.6,3121.5,5.59600052]
[1765767895207,0.002,3121.6,3121.5,5.6280364]
[1765767895596,0.002,3121.6,3121.5,5.59600052]
[1765767896280,0.002,3121.6,3121.5,4.2351633]
[1765767899511,0.2674,3121.6,3121.5,3.7840633]
[1765767899717,0.002,3121.6,3121.5,4.2407633]
[1765767900019,0.002,3121.6,3121.5,4.7305633]
[1765767900520,0.002,3122.2,3121.7,0.862204]
[1765767900817,0.002,3122.2,3122.1,7.3418429]
[1765767901017,0.002,3122.2,3122.1,8.07602719]
[1765767901218,0.002,3122.2,3122.1,8.56582719]
[1765767901712,0.002,3122.2,3122.1,11.76879954]
[1765767906830,0.002,3122.2,3122.1,11.12209954]
[1765767907135,0.002,3122.2,3122.1,3.78344764]
[1765767907136,0.7402,3122.2,3122.1,3.78344764]
[1765767909013,0.7402,3122.2,3122.1,0.58047529]
[1765767909219,0.7402,3122.2,3122.1,3.78344764]
[1765767910322,0.7402,3122.2,3121.8,0.58047529]
[1765767910506,0.00966759,3121.9,3121.8,3.78375544]
[1765767910692,0.45636759,3121.9,3121.8,3.78375544]
[1765767910891,0.92706759,3121.9,3121.8,3.78375544]
[1765767911086,0.92706759,3121.9,3121.5,3.20350044]
[1765767911316,0.00966759,3121.7,3121.6,3.20348539]
[1765767911505,0.00966759,3121.7,3121.6,3.78396068]
[1765767911816,0.74446759,3121.7,3121.6,3.20348539]
[1765767912033,1.25246759,3121.7,3121.6,3.20348539]
[1765767912526,1.25246759,3121.7,3121.4,0.58047529]
[1765767912690,0.01226759,3121.5,3121.4,0.58047529]
[1765767913099,0.48586759,3121.5,3121.4,0.58047529]
[1765767915202,0.48586759,3121.5,3121.4,3.78416594]
[1765767915914,0.01226759,3121.5,3121.4,3.78416594]
[1765767916728,0.52026759,3121.5,3121.4,3.78416594]
[1765767918306,0.00966759,3122.1,3121.4,11.83694316]
[1765767918503,0.00966759,3121.9,3121.6,0.4567]
[1765767919101,0.00966759,3122.3,3121.8,0.4567]
[1765767919300,0.00966759,3122.3,3122.1,0.4567]
[1765767919510,0.00966759,3122.3,3121.7,0.4898]
[1765767919708,0.00966759,3122.3,3121.8,0.66375676]
[1765767919998,0.00966759,3122.3,3122.0,0.58047529]
[1765767920199,0.27256759,3122.1,3122.0,0.58047529]
[1765767920402,0.73416759,3122.1,3122.0,0.58047529]
[1765767922407,0.73416759,3122.1,3122.0,3.78355024]
[1765767923033,0.508,3122.1,3122.0,4.24025024]
[1765767923329,0.51,3122.2,3122.0,4.98459302]
[1765767923525,0.002,3122.2,3122.1,1.1355]
[1765767923914,0.002,3122.2,3122.1,7.8637429]
[1765767924226,0.002,3122.5,3122.1,7.8637429]
[1765767924413,0.002,3122.5,3122.4,0.4567]
[1765767924614,0.002,3122.5,3122.4,4.44343743]
[1765767924839,0.002,3122.5,3122.4,4.93323743]
[1765767926111,1e-08,3122.9,3122.8,0.4567]
[1765767926420,1e-08,3122.9,3122.8,7.6747429]
[1765767926608,0.002,3123.5,3123.0,0.4647]
[1765767926806,0.002,3123.5,3123.3,6.80716761]
[1765767927128,0.002,3123.5,3123.3,7.48788437]
[1765767927432,0.002,3123.5,3123.3,8.52385966]
[1765767928838,0.002,3123.5,3123.3,11.7256014]
[1765767930328,0.002,3123.5,3123.3,11.2701014]
[1765767930523,0.002,3123.5,3123.3,11.0754014]
[1765767930725,0.2488,3123.4,3123.3,3.78221703]
[1765767931251,0.7302,3123.4,3122.7,3.20233085]
[1765767931590,0.4834,3123.4,3123.2,3.2018129]
[1765767931719,0.002,3123.4,3123.2,3.2018129]
[1765767931920,0.7306,3123.3,3123.2,3.78228819]
[1765767933346,0.7306,3123.3,3123.2,3.78231955]
[1765767934255,0.7306,3123.3,3123.0,3.20197122]
[1765767934436,0.01216759,3123.1,3123.0,3.20197122]
[1765767934956,0.49596759,3123.1,3123.0,3.20197122]
[1765767935324,0.49596759,3123.1,3122.8,3.20225438]
[1765767935529,0.44996759,3122.9,3121.9,0.4702]
[1765767935755,0.00966759,3122.7,3122.1,9.60891705]
[1765767936032,0.00966759,3122.7,3122.2,0.58047529]
[1765767936434,0.49346759,3122.7,3122.2,0.58047529]
[1765767936832,0.00966759,3122.5,3122.2,0.58047529]
[1765767937161,0.2439,3122.3,3122.2,0.58047529]
[1765767937856,0.00966759,3122.5,3122.2,6.98621483]
[1765767938062,0.00966759,3122.5,3122.2,7.45921483]
[1765767938264,0.00966759,3122.5,3122.2,7.92941483]
[1765767938566,0.25356759,3122.3,3122.2,3.78334506]
[1765767938770,0.25356759,3122.3,3122.0,3.20307072]
[1765767939086,0.00966759,3122.3,3122.2,3.20286977]
[1765767939265,0.00966759,3122.3,3122.0,3.20307072]
[1765767939456,0.4566,3122.1,3122.0,0.58047529]
[1765767939836,0.4566,3122.1,3122.0,3.78355024]
[1765767940036,0.00966759,3122.3,3122.0,6.98662519]
[1765767940242,0.00966759,3122.3,3122.0,3.78355024]
[1765767940547,0.01166759,3122.3,3122.0,6.98662519]
[1765767941666,0.49546759,3122.3,3122.0,6.98662519]
[1765767942780,0.2439,3122.1,3122.0,3.78355024]
[1765767943871,0.01166759,3122.3,3122.0,6.98662519]
[1765767944270,0.002,3122.3,3122.2,0.473]
[1765767944955,0.25556759,3122.3,3122.0,6.98662519]
[1765767945195,0.0024,3122.1,3122.0,3.78355024]
[1765767945793,0.4862,3122.1,3122.0,3.78355024]
[1765767947701,0.405504,3122.0,3121.8,0.001]
[1765767947994,0.1959,3122.2,3122.0,0.001]
[1765767948197,0.508,3122.1,3122.0,0.001]
[1765767948397,1.2304,3122.1,3122.0,0.001]
[1765767951876,1.24006759,3122.1,3122.0,0.001]
[1765767954796,0.01166759,3122.3,3122.0,0.474]
[1765767955103,0.51966759,3122.3,3122.2,0.473]
[1765767955403,0.51966759,3122.3,3122.0,0.4712]
[1765767955600,0.51966759,3122.3,3122.0,0.001]
[1765767955976,0.4566,3122.1,3122.0,0.001]
[1765767956176,0.51966759,3122.3,3122.0,0.001]
[1765767956390,0.51966759,3122.3,3122.0,0.474]
[1765767956617,0.4839,3122.1,3122.0,0.001]
[1765767957079,0.49356759,3122.1,3122.0,0.001]
[1765767957412,0.73446759,3122.1,3122.0,0.001]
[1765767957908,0.01166759,3122.3,3122.0,0.4586]
[1765767958113,0.646,3121.9,3121.4,0.001]
[1765767958311,0.646,3121.9,3121.0,0.001]
[1765767958312,13.858605,3120.6,3120.5,0.001]
[1765767958481,13.858605,3120.6,3119.3,0.001]
[1765767958482,0.0018,3120.1,3119.3,0.001]
[1765767958681,0.405504,3120.5,3119.3,0.001]
[1765767958682,30.405504,3119.8,3119.3,0.001]
[1765767958885,30.98757929,3119.6,3119.3,0.001]
[1765767959083,30.405504,3119.1,3119.0,0.001]
[1765767959301,30.919504,3119.1,3119.0,0.001]
[1765767959587,31.378704,3119.1,3119.0,0.001]
[1765767959895,34.58475702,3119.1,3119.0,0.001]
[1765767960081,34.51024096,3119.1,3119.0,0.001]
[1765767960285,4.51024096,3119.1,3119.0,0.001]
[1765767960586,34.58475702,3119.1,3119.0,0.001]
[1765767960991,0.4632,3119.1,3119.0,0.001]
[1765767961214,0.9732,3119.1,3119.0,0.001]
[1765767961419,0.004,3119.1,3119.0,0.001]
[1765767961670,0.00966759,3119.3,3119.0,0.001]
[1765767961915,0.51,3119.2,3119.1,3.20605302]
[1765767962317,0.00966759,3119.3,3119.1,4.32105302]
[1765767962485,0.51966759,3119.3,3119.2,0.4576]
[1765767962683,0.51966759,3119.3,3119.1,3.86345302]
[1765767962684,0.51966759,3119.3,3119.1,3.20605302]
[1765767963095,0.00966759,3119.3,3119.1,3.20605302]
[1765767964423,0.00966759,3119.3,3119.0,0.001]
[1765767964624,0.00966759,3119.1,3119.0,0.001]
[1765767965124,0.00966759,3119.1,3119.0,0.4586]
[1765767966495,0.00966759,3119.1,3119.0,0.001]
[1765767966696,0.00966759,3119.1,3119.0,3.20715581]
[1765767966697,0.51,3119.1,3119.0,3.20715581]
[1765767967195,0.7526,3119.1,3119.0,3.20715581]
[1765767968915,0.51,3119.1,3119.0,0.001]
[1765767969312,0.00966759,3119.2,3119.0,0.4586]
[1765767969516,0.51966759,3119.2,3119.1,0.4576]
[1765767969916,0.51966759,3119.2,3119.0,0.001]
[1765767970410,0.4839,3119.1,3119.0,0.001]
[1765767972129,0.00966759,3119.4,3119.0,0.9162]
[1765767972331,0.00966759,3119.1,3119.0,0.4586]
[1765767972631,0.00966759,3119.4,3119.0,0.001]
[1765767972833,0.00966759,3119.2,3119.1,0.1998]
[1765767973015,0.51966759,3119.4,3119.3,0.4576]
[1765767973530,0.51966759,3119.4,3119.1,6.61190604]
[1765767974106,0.51966759,3119.4,3119.1,7.06950604]
[1765767975026,0.00966759,3119.4,3119.1,7.06950604]
[1765767975335,0.00966759,3119.4,3119.3,0.4576]
[1765767976661,0.00966759,3119.8,3119.3,1.6221506]
[1765767976836,0.00966759,3119.8,3119.7,0.4576]
[1765767977227,0.00966759,3119.8,3119.7,3.66303642]
[1765767977422,0.70706759,3119.8,3119.5,3.20555085]
[1765767977611,0.01426759,3119.6,3119.0,0.001]
[1765767977812,0.25006759,3119.1,3119.0,3.20715581]
[1765767978331,0.70706759,3119.1,3119.0,3.20715581]
[1765767978732,0.25006759,3119.1,3119.0,3.20715581]
[1765767979133,0.70706759,3119.1,3119.0,0.001]
[1765767979908,0.2404,3119.1,3119.0,0.001]
[1765767980108,0.51966759,3119.1,3119.0,0.4586]
[1765767980949,0.51966759,3119.1,3119.0,0.001]
[1765767982649,0.51966759,3119.1,3119.0,0.4586]
[1765767983146,0.00966759,3119.4,3119.0,0.4586]
[1765767983349,0.00966759,3119.2,3119.1,3.20605302]
[1765767984173,0.00966759,3119.2,3119.1,3.66365302]
[1765767984932,0.00966759,3119.4,3119.1,3.86345302]
[1765767985156,0.00966759,3119.4,3119.3,0.4576]
[1765767985455,0.00966759,3119.4,3119.3,3.20584746]
[1765767986453,0.00966759,3119.4,3119.3,3.66344746]
[1765767986624,0.00966759,3119.4,3119.3,4.14884746]
[1765767987031,0.00966759,3119.4,3119.3,3.66344746]
[1765767990749,0.00966759,3119.4,3119.3,3.20584746]
[1765767990750,0.25356759,3119.4,3119.3,3.20584746]
[1765767990952,0.00966759,3119.4,3119.3,3.65984746]
[1765767991454,0.00966759,3119.4,3119.3,4.11114746]
[1765767991703,0.01166759,3119.8,3119.3,11.27290243]
[1765767991853,0.01166759,3119.8,3119.5,0.454]
[1765767992055,0.01166759,3119.8,3119.7,0.454]
[1765767992261,0.00966759,3120.4,3119.7,0.454]
[1765767992262,1e-08,3121.1,3121.0,0.454]
[1765767992468,1e-08,3121.1,3121.0,1.03447529]
[1765767992683,1e-08,3121.1,3121.0,2.89887006]
[1765767992832,1e-08,3121.1,3121.0,6.95678092]
[1765767993182,0.002,3121.8,3121.1,0.58047529]
[1765767993347,0.002,3121.8,3121.7,0.454]
[1765767993850,0.002,3121.8,3121.7,0.9053]
[1765767995256,0.002,3121.8,3121.7,4.68915806]
[1765767995965,0.002,3121.8,3121.7,4.23785806]
[1765767997660,0.002,3121.8,3121.7,4.68915806]
[1765767997860,0.002,3121.8,3121.7,3.78385806]
[1765767999072,0.002,3121.8,3121.7,4.23785806]
[1765768000146,0.002,3121.8,3121.7,4.68915806]
[1765768000343,0.002,3121.8,3121.7,5.47842459]
[1765768001562,0.002,3121.8,3121.7,5.02712459]
[1765768002969,0.2096,3121.8,3121.7,3.78385806]
[1765768003173,0.002,3121.8,3121.7,4.68915806]
[1765768004966,0.002,3121.8,3121.7,4.72119188]
[1765768005164,0.002,3121.8,3121.7,4.68915806]
[1765768005367,0.002,3121.8,3121.7,6.09313624]
[1765768007084,0.2471,3121.8,3121.7,3.20338277]
[1765768007291,0.7404,3121.8,3121.7,3.20338277]
[1765768007476,0.7404,3121.8,3121.7,3.78385806]
[1765768007786,0.2471,3121.8,3121.7,3.78385806]
[1765768008251,0.002,3121.8,3121.7,4.23785806]
[1765768009055,0.002,3121.8,3121.7,5.43329459]
[1765768011184,0.002,3121.8,3121.7,4.23785806]
[1765768012183,0.2471,3121.8,3121.7,3.78385806]
[1765768013091,0.7404,3121.8,3121.7,3.20338277]
[1765768013380,0.75006759,3121.8,3121.7,3.20338277]
[1765768014065,1.26006759,3121.8,3121.4,3.20359884]
[1765768014265,0.0049,3121.6,3121.4,3.20359884]
[1765768014478,0.2402,3121.5,3121.4,3.20359884]
[1765768014975,0.7361,3121.5,3121.1,6.98847247]
[1765768015179,0.4959,3121.5,3121.1,6.98847247]
[1765768015357,0.2451,3121.2,3121.1,3.78447388]
[1765768015765,0.4959,3121.7,3121.1,10.64647106]
[1765768015977,0.51966759,3121.6,3121.1,11.71121817]
[1765768016451,0.51,3121.7,3121.2,0.4513]
[1765768016651,0.01166759,3121.8,3121.2,0.4513]
[1765768016852,0.002,3121.8,3121.3,9.61137987]
[1765768017289,0.4725,3121.8,3121.3,9.61137987]
[1765768017653,0.4711,3121.4,3121.3,3.78426858]
[1765768019328,0.4711,3121.4,3121.3,3.20379329]
[1765768019717,0.9811,3121.4,3121.3,3.20379329]
[1765768020713,1.2491,3121.4,3121.3,3.20379329]
[1765768020898,1.2491,3121.4,3121.0,0.58147529]
[1765768021095,0.00966759,3121.3,3121.0,0.58147529]
[1765768021296,0.4711,3121.1,3121.0,0.58147529]
[1765768021772,0.51,3121.2,3121.0,1.55507529]
[1765768021966,0.51,3121.2,3121.0,1.07417529]
[1765768022179,0.51,3121.2,3121.1,0.4809]
[1765768022343,0.7371,3121.1,3121.0,0.58147529]
[1765768022545,0.74676759,3121.1,3121.0,0.58147529]
[1765768023055,0.74676759,3121.1,3121.0,0.001]
[1765768024272,1.15227159,3121.1,3121.0,0.001]
[1765768024459,1.31849875,3121.1,3121.0,0.001]
[1765768025245,4.52249734,3121.1,3121.0,0.001]
[1765768025856,1.82849875,3121.1,3121.0,0.001]
[1765768026181,5.03249734,3121.1,3121.0,0.001]
[1765768026762,1.82849875,3121.1,3121.0,0.001]
[1765768026979,1.31849875,3121.1,3121.0,0.001]
[1765768027180,4.52249734,3121.1,3121.0,0.001]
[1765768027376,5.03249734,3121.1,3121.0,0.001]
[1765768029260,35.61297263,3121.1,3121.0,0.001]
[1765768030074,5.61297263,3121.1,3121.0,0.001]
[1765768030276,35.61297263,3121.1,3121.0,0.001]
[1765768031872,35.10497263,3121.1,3121.0,0.001]
[1765768032176,5.61497263,3121.1,3121.0,0.001]
[1765768032495,35.61497263,3121.1,3121.0,0.001]
[1765768035401,35.10497263,3121.1,3121.0,0.001]
[1765768035600,11.88743863,3121.1,3121.0,0.001]
[1765768035899,12.80294263,3121.1,3121.0,0.001]
[1765768036297,35.61497263,3121.1,3121.0,0.001]
[1765768037624,35.10497263,3121.1,3121.0,0.001]
[1765768037905,35.61497263,3121.1,3121.0,0.001]
[1765768039407,35.10497263,3121.1,3121.0,0.001]
[1765768039610,35.61497263,3121.1,3121.0,0.001]
[1765768045433,38.98797263,3121.1,3121.0,0.001]
[1765768045817,38.98797263,3121.1,3119.8,0.001]
[1765768045818,0.98597929,3120.3,3119.8,0.001]
[1765768046027,9.52379331,3120.6,3119.8,0.001]
[1765768046028,30.605204,3119.9,3119.8,0.001]
[1765768046531,31.075704,3119.9,3119.8,0.001]
[1765768046698,31.65617929,3119.9,3119.8,0.001]
[1765768047603,34.86141022,3119.9,3119.8,0.001]
[1765768048407,35.37141022,3119.9,3119.8,0.001]
[1765768048607,34.86141022,3119.9,3119.8,0.001]
[1765768048832,3.279037,3119.9,3119.8,0.001]
[1765768049042,4.535039,3119.9,3119.8,0.4805]
[1765768049333,0.51,3119.9,3119.8,0.4805]
[1765768049646,2.14866759,3119.9,3119.8,0.4805]
[1765768049842,0.51966759,3119.9,3119.8,0.9438]
[1765768050049,16.35455552,3119.9,3119.8,0.001]
[1765768050332,13.49058352,3119.9,3119.8,0.001]
[1765768050535,15.67845024,3119.9,3119.8,0.001]
[1765768050725,16.08395424,3119.9,3119.8,0.001]
[1765768051033,17.62722524,3119.9,3119.8,0.001]
[1765768051407,14.52880924,3119.9,3119.8,0.001]
[1765768051607,14.08499524,3119.9,3119.8,0.001]
[1765768052106,0.4745,3121.1,3119.8,0.9438]
[1765768052306,18.341095,3120.9,3120.0,0.4795]
[1765768052509,0.405504,3120.4,3120.0,0.4795]
[1765768052710,0.51,3120.3,3120.0,0.4295]
[1765768052909,8.155291,3120.8,3120.1,0.118]
[1765768053110,0.00966759,3120.6,3120.2,0.4795]
[1765768053310,0.51,3120.5,3120.2,0.9428]
[1765768053540,0.51,3120.5,3120.2,0.4633]
[1765768053727,4.419266,3120.5,3120.4,0.4795]
[1765768054138,0.405504,3120.4,3119.9,0.4633]
[1765768054439,1.26033922,3120.4,3119.9,0.4633]
[1765768054620,0.408504,3120.4,3119.9,0.4633]
[1765768054941,0.41817159,3120.4,3119.9,0.4633]
[1765768056539,0.41817159,3120.4,3119.9,3.66851383]
[1765768056844,0.00966759,3120.7,3120.3,0.6702]
[1765768057043,0.405504,3120.5,3120.4,0.4795]
[1765768057340,3.09046088,3120.7,3120.6,0.4795]
[1765768057554,0.405504,3120.6,3120.3,0.1907]
[1765768058051,6.663718,3120.5,3120.1,0.654]
[1765768058211,5.293511,3120.5,3120.1,0.654]
[1765768058749,0.405504,3120.4,3120.1,0.1907]
[1765768058920,0.51,3120.3,3119.9,0.001]
[1765768059123,0.51,3120.3,3119.9,0.4643]
[1765768059844,0.92298137,3120.3,3119.9,0.4643]
[1765768060048,9.645551,3120.2,3119.9,0.001]
[1765768060220,6.743184,3120.0,3119.9,0.001]
[1765768060546,6.191476,3120.0,3119.9,0.001]
[1765768060752,7.26434436,3120.0,3119.9,0.001]
[1765768060917,1.07286836,3120.0,3119.9,0.4805]
[1765768061248,0.405504,3120.0,3119.9,0.4805]
[1765768061617,0.00966759,3120.1,3119.9,0.9438]
[1765768061821,2.81621059,3120.1,3120.0,0.4795]
[1765768062038,0.51,3120.1,3120.0,0.9428]
[1765768062238,0.00966759,3120.5,3120.0,0.9428]
[1765768062440,0.00966759,3120.7,3120.4,0.4795]
[1765768062767,2.51008559,3120.7,3120.6,0.4795]
[1765768062929,3.27206091,3120.7,3120.6,0.4795]
[1765768063120,0.00966759,3120.7,3120.6,0.4795]
[1765768063448,3.01708559,3120.7,3120.6,0.9428]
[1765768063636,3.01708559,3120.7,3120.6,0.4795]
[1765768065032,0.51966759,3120.7,3120.6,0.4795]
[1765768065232,0.51966759,3120.7,3120.6,0.9428]
[1765768066167,0.00966759,3120.9,3120.6,4.14731195]
[1765768066320,0.002,3121.1,3120.8,0.4795]
[1765768066523,0.51,3120.8,3120.7,0.4633]
[1765768067058,0.51,3120.8,3120.7,0.9428]
[1765768067620,0.51,3120.8,3120.7,4.14720926]
[1765768067949,0.51,3120.8,3120.7,0.4795]
[1765768068761,0.51,3120.8,3120.7,0.9428]
[1765768069061,0.51,3120.8,3120.7,4.14720926]
[1765768071773,0.51,3120.8,3120.7,4.09720926]
[1765768073272,0.002,3121.1,3120.7,4.09720926]
[1765768073455,0.51,3120.8,3120.7,3.20440926]
[1765768073971,0.002,3121.1,3120.7,4.14720926]
[1765768074168,0.002,3121.1,3120.7,6.40881852]
[1765768074374,0.002,3121.1,3121.0,0.4795]
[1765768074782,0.511,3121.1,3121.0,0.9428]
[1765768075272,0.002,3121.1,3121.0,0.9428]
[1765768075465,0.511,3121.1,3121.0,0.9428]
[1765768075666,0.511,3121.1,3121.0,4.14690124]
[1765768075880,0.002,3121.1,3121.0,4.14690124]
[1765768076187,0.511,3121.1,3121.0,4.88201936]
[1765768076671,0.002,3121.1,3121.0,5.46249465]
[1765768080979,0.002,3121.1,3121.0,5.49909465]
[1765768081366,0.002,3121.1,3121.0,4.18350124]
[1765768082260,0.002,3121.1,3121.0,0.4795]
[1765768082584,0.8762,3121.1,3120.9,3.20420242]
[1765768082781,0.8762,3121.1,3120.8,3.20427334]
[1765768083184,0.8762,3121.1,3120.7,3.20440334]
[1765768084167,0.405504,3120.7,3120.5,0.001]
[1765768084457,0.0074,3120.6,3120.5,0.001]
[1765768084652,0.4967,3120.6,3120.5,0.001]
[1765768085160,0.902204,3120.6,3120.5,0.001]
[1765768085875,4.10671595,3120.6,3120.5,0.001]
[1765768086075,4.5366343,3120.6,3120.5,0.001]
[1765768088057,1.33212235,3120.6,3120.5,0.001]
[1765768088253,1.34178994,3120.6,3120.5,0.001]
[1765768088960,4.54630189,3120.6,3120.5,0.001]
[1765768089486,1.85078994,3120.6,3120.5,0.001]
[1765768090085,5.05530189,3120.6,3120.5,0.001]
[1765768090984,1.85078994,3120.6,3120.5,0.001]
[1765768091374,5.05530189,3120.6,3120.5,0.001]
[1765768091591,1.85078994,3120.6,3120.5,0.001]
[1765768092084,0.43958594,3120.6,3120.5,0.001]
[1765768092284,0.51866759,3120.6,3120.5,0.4621]
[1765768092488,4.81878354,3120.6,3120.5,0.001]
[1765768094370,34.81878354,3120.6,3120.5,0.001]
[1765768094671,24.97742554,3120.6,3120.5,0.001]
[1765768095376,34.81878354,3120.6,3120.5,0.001]
[1765768095578,35.39925883,3120.6,3120.5,0.001]
[1765768096413,5.39925883,3120.6,3120.5,0.001]
[1765768096578,35.39925883,3120.6,3120.5,0.001]
[1765768096871,35.52762173,3120.6,3120.5,0.001]
[1765768098575,35.01862173,3120.6,3120.5,0.001]
[1765768098802,5.52762173,3120.6,3120.5,0.001]
[1765768099003,0.91930578,3120.6,3120.5,0.001]
[1765768099217,0.51866759,3120.6,3120.5,0.4621]
[1765768100204,0.90056759,3120.6,3120.5,0.001]
[1765768100393,20.75968254,3120.6,3120.5,0.001]
[1765768100611,21.24788254,3120.6,3120.5,0.001]
[1765768100787,23.69427749,3120.6,3120.5,0.001]
[1765768101391,23.90609849,3120.6,3120.5,0.001]
[1765768101996,22.90609849,3120.6,3120.5,0.001]
[1765768102307,7.44517849,3120.6,3120.5,0.001]
[1765768102612,19.18451583,3120.6,3120.5,0.001]
[1765768102786,19.69351583,3120.6,3120.5,0.001]
[1765768103112,20.19441583,3120.6,3120.5,0.001]
[1765768103502,36.08015883,3120.6,3120.5,0.001]
[1765768106004,35.57115883,3120.6,3120.5,0.001]
[1765768106204,11.08272883,3120.6,3120.5,0.001]
[1765768106420,36.08015883,3120.6,3120.5,0.001]
[1765768106618,34.69026883,3120.6,3120.5,0.001]
[1765768106818,33.88457483,3120.6,3120.5,0.001]
[1765768107488,6.08015883,3120.6,3120.5,0.001]
[1765768107688,36.92852741,3120.6,3120.5,0.001]
[1765768108095,32.32131146,3120.6,3120.5,0.001]
[1765768108417,5.05376546,3120.6,3120.5,0.9263]
[1765768108618,0.00966759,3120.6,3120.5,0.9263]
[1765768108818,3.54366759,3120.6,3120.5,0.9263]
[1765768108990,3.54366759,3120.6,3120.5,0.4532]
[1765768108991,3.94917159,3120.6,3120.5,0.4532]
[1765768109912,0.00966759,3120.6,3120.5,0.9263]
[1765768110223,0.51866759,3120.6,3120.5,0.9263]
[1765768110794,0.51866759,3120.6,3120.5,0.4532]
[1765768111941,3.72317954,3120.6,3120.5,0.4532]
[1765768112236,1.29764928,3120.6,3120.5,0.9263]
[1765768112396,0.92417159,3120.6,3120.5,0.9263]
[1765768113127,0.92417159,3120.6,3120.5,0.4532]
[1765768115039,0.00966759,3120.6,3120.5,0.4532]
[1765768115336,0.51866759,3120.6,3120.5,0.9263]
[1765768117027,0.51866759,3120.6,3120.5,4.13091464]
[1765768117327,0.51866759,3120.6,3120.5,0.9263]
[1765768117503,0.51866759,3120.6,3120.5,4.13091464]
[1765768119838,0.51866759,3120.6,3120.5,0.9263]
[1765768121230,0.51866759,3120.6,3120.5,4.13091464]
[1765768122324,0.51866759,3120.6,3120.5,0.9263]
[1765768125512,1.78807159,3120.6,3120.5,0.001]
[1765768126026,2.28848765,3120.6,3120.5,0.001]
[1765768126229,5.0227996,3120.6,3120.5,0.001]
[1765768126625,13.1433036,3120.6,3120.5,0.001]
[1765768126873,9.1043036,3120.6,3120.5,0.001]
[1765768127619,5.4929996,3120.6,3120.5,0.001]
[1765768127833,17.2005216,3120.6,3120.5,0.001]
[1765768128217,17.6746216,3120.6,3120.5,0.001]
[1765768128417,14.9102776,3120.6,3120.5,0.001]
[1765768128628,5.9670996,3120.6,3120.5,0.001]
[1765768128945,16.4938856,3120.6,3120.5,0.001]
[1765768129333,14.6496846,3120.6,3120.5,0.001]
[1765768129841,13.6489376,3120.6,3120.5,0.001]
[1765768130045,9.8113296,3120.6,3120.5,0.001]
[1765768130236,8.6676296,3120.6,3120.5,0.001]
[1765768130820,11.2360086,3120.6,3120.5,0.001]
[1765768131432,9.5177976,3120.6,3120.5,0.001]
[1765768131949,9.5210556,3120.6,3120.5,0.001]
[1765768132852,9.5169646,3120.6,3120.5,0.001]
[1765768133854,11.2461366,3120.6,3120.5,0.001]
[1765768134366,9.5250246,3120.6,3120.5,0.001]
[1765768134954,17.2514666,3120.6,3120.5,0.001]
[1765768135252,14.5304196,3120.6,3120.5,0.001]
[1765768135955,15.5064236,3120.6,3120.5,0.001]
[1765768136156,14.5064236,3120.6,3120.5,0.001]
[1765768136354,1.42458765,3120.6,3120.5,0.001]